[Event "Late-Titled-Tuesday-Blitz-March-19-2024"]
[Site "Chess.com"]
[Date "2024.03.19"]
[Round "11"]
[White "Mariia89"]
[Black "ploxoi"]
[Result "0-1"]
[WhiteElo "2275"]
[BlackElo "2411"]
[TimeControl "180+1"]
[EndTime "16:03:51 PDT"]
[Termination "ploxoi won on time"]

1. d4 {[%clk 0:02:56.9]} 1... d5 {[%clk 0:02:58.3]} 2. c4 {[%clk 0:02:56.7]}
2... e6 {[%clk 0:02:57.3]} 3. Nc3 {[%clk 0:02:56.5]} 3... c6 {[%clk 0:02:56.8]}
4. e3 {[%clk 0:02:56.1]} 4... Nf6 {[%clk 0:02:55.8]} 5. Nf3 {[%clk 0:02:56.6]}
5... Be7 {[%clk 0:02:54.9]} 6. Bd3 {[%clk 0:02:57]} 6... O-O {[%clk 0:02:53.3]}
7. O-O {[%clk 0:02:57.1]} 7... c5 {[%clk 0:02:50.3]} 8. cxd5 {[%clk 0:02:55]}
8... Nxd5 {[%clk 0:02:50.1]} 9. e4 {[%clk 0:02:53.7]} 9... Nb4 {[%clk
0:02:48.5]} 10. Bb1 {[%clk 0:02:53.6]} 10... N8c6 {[%clk 0:02:37.9]} 11. a3
{[%clk 0:02:52.4]} 11... Na6 {[%clk 0:02:37.1]} 12. d5 {[%clk 0:02:51.2]} 12...
exd5 {[%clk 0:02:36.4]} 13. exd5 {[%clk 0:02:52.1]} 13... Ncb8 {[%clk
0:02:31.2]} 14. Qd3 {[%clk 0:02:33.9]} 14... g6 {[%clk 0:02:27.8]} 15. Bh6
{[%clk 0:02:01.8]} 15... Re8 {[%clk 0:02:27.4]} 16. Qd2 {[%clk 0:01:42.7]} 16...
Bg4 {[%clk 0:02:22.6]} 17. Ne5 {[%clk 0:01:41.7]} 17... Bd7 {[%clk 0:02:17.2]}
18. Qf4 {[%clk 0:01:37.8]} 18... Bf6 {[%clk 0:02:16.5]} 19. Ng4 {[%clk
0:01:31.2]} 19... Bxg4 {[%clk 0:02:13.6]} 20. Qxg4 {[%clk 0:01:32.1]} 20... Bg7
{[%clk 0:02:10.9]} 21. Bxg7 {[%clk 0:01:30.9]} 21... Kxg7 {[%clk 0:02:09.9]} 22.
h4 {[%clk 0:01:27.8]} 22... Re5 {[%clk 0:02:03.6]} 23. Bd3 {[%clk 0:01:19.1]}
23... Qd7 {[%clk 0:02:02.4]} 24. Qg3 {[%clk 0:01:14.4]} 24... Re8 {[%clk
0:01:54.4]} 25. Rfe1 {[%clk 0:01:14]} 25... Nc7 {[%clk 0:01:52.1]} 26. Rxe8
{[%clk 0:00:51.2]} 26... Nxe8 {[%clk 0:01:53]} 27. h5 {[%clk 0:00:51.4]} 27...
Nf6 {[%clk 0:01:51]} 28. h6+ {[%clk 0:00:47.7]} 28... Kxh6 {[%clk 0:01:47]} 29.
Qe3+ {[%clk 0:00:47.7]} 29... Kg7 {[%clk 0:01:47]} 30. Qxc5 {[%clk 0:00:47.9]}
30... Qg4 {[%clk 0:01:39.7]} 31. Re1 {[%clk 0:00:42.8]} 31... Nbd7 {[%clk
0:01:38.9]} 32. Qd6 {[%clk 0:00:34.1]} 32... Nb6 {[%clk 0:01:33.1]} 33. Re3
{[%clk 0:00:26.8]} 33... Qd7 {[%clk 0:01:20.5]} 34. Qxd7 {[%clk 0:00:09]} 34...
Nfxd7 {[%clk 0:01:21.4]} 35. Re7 {[%clk 0:00:04.7]} 35... Nc5 {[%clk 0:01:21.5]}
36. Bb5 {[%clk 0:00:03.8]} 36... Rd8 {[%clk 0:01:21]} 0-1

[Event "Late-Titled-Tuesday-Blitz-March-19-2024"]
[Site "Chess.com"]
[Date "2024.03.19"]
[Round "11"]
[White "liwadas82"]
[Black "Cluke86"]
[Result "1-0"]
[WhiteElo "2514"]
[BlackElo "2342"]
[TimeControl "180+1"]
[EndTime "16:03:52 PDT"]
[Termination "liwadas82 won on time"]

1. e4 {[%clk 0:03:00.9]} 1... d6 {[%clk 0:03:00.9]} 2. d4 {[%clk 0:03:00.5]}
2... Nf6 {[%clk 0:03:01]} 3. Nc3 {[%clk 0:03:01.2]} 3... e5 {[%clk 0:03:01.4]}
4. Nf3 {[%clk 0:03:00]} 4... Nbd7 {[%clk 0:03:00.7]} 5. Bc4 {[%clk 0:02:59.1]}
5... Be7 {[%clk 0:03:00.9]} 6. O-O {[%clk 0:02:56.4]} 6... c6 {[%clk 0:03:01.1]}
7. a4 {[%clk 0:02:56.7]} 7... Qc7 {[%clk 0:03:01.4]} 8. Re1 {[%clk 0:02:54.3]}
8... h6 {[%clk 0:03:01.2]} 9. b3 {[%clk 0:02:51.1]} 9... b6 {[%clk 0:02:40.1]}
10. Ba3 {[%clk 0:02:46.5]} 10... Bb7 {[%clk 0:02:31.4]} 11. Nh4 {[%clk
0:02:37.1]} 11... g6 {[%clk 0:02:27.2]} 12. d5 {[%clk 0:02:29.9]} 12... a6
{[%clk 0:02:15.2]} 13. dxc6 {[%clk 0:02:25]} 13... Bxc6 {[%clk 0:02:14.6]} 14.
Nf3 {[%clk 0:02:21.1]} 14... Nc5 {[%clk 0:02:09.2]} 15. Nd5 {[%clk 0:02:07.3]}
15... Bxd5 {[%clk 0:02:01.7]} 16. Bxd5 {[%clk 0:02:05.7]} 16... Nxd5 {[%clk
0:01:58.7]} 17. exd5 {[%clk 0:02:04.9]} 17... O-O {[%clk 0:01:55.9]} 18. c4
{[%clk 0:02:05]} 18... Bf6 {[%clk 0:01:51.5]} 19. Rc1 {[%clk 0:01:59.5]} 19...
e4 {[%clk 0:01:50.9]} 20. Nd2 {[%clk 0:01:46.2]} 20... Nd3 {[%clk 0:01:49.3]}
21. Nxe4 {[%clk 0:01:45.5]} 21... Bb2 {[%clk 0:00:38]} 22. Qxd3 {[%clk
0:01:21.4]} 22... Bxa3 {[%clk 0:00:31.2]} 23. Nf6+ {[%clk 0:00:52.8]} 23... Kh8
{[%clk 0:00:31.5]} 24. Qc3 {[%clk 0:00:52.8]} 24... Qc8 {[%clk 0:00:14.4]} 25.
Ne8+ {[%clk 0:00:45.4]} 25... f6 {[%clk 0:00:12.1]} 26. Nxf6 {[%clk 0:00:44.7]}
1-0

[Event "Late-Titled-Tuesday-Blitz-March-19-2024"]
[Site "Chess.com"]
[Date "2024.03.19"]
[Round "11"]
[White "ninguno46"]
[Black "Jahonas"]
[Result "1-0"]
[WhiteElo "2529"]
[BlackElo "2374"]
[TimeControl "180+1"]
[EndTime "16:03:59 PDT"]
[Termination "ninguno46 won by resignation"]

1. e4 {[%clk 0:03:00.9]} 1... e5 {[%clk 0:02:58.5]} 2. Nf3 {[%clk 0:03:00]} 2...
Nf6 {[%clk 0:02:58.7]} 3. Nxe5 {[%clk 0:02:59.9]} 3... d6 {[%clk 0:02:59.3]} 4.
Nf3 {[%clk 0:02:59.3]} 4... Nxe4 {[%clk 0:02:58.9]} 5. Nc3 {[%clk 0:02:59.6]}
5... Nxc3 {[%clk 0:02:59.1]} 6. dxc3 {[%clk 0:03:00.5]} 6... Be7 {[%clk
0:02:59.4]} 7. Be3 {[%clk 0:02:59.5]} 7... O-O {[%clk 0:02:58.6]} 8. Qd2 {[%clk
0:02:59.6]} 8... Nc6 {[%clk 0:02:58]} 9. O-O-O {[%clk 0:02:59.5]} 9... Be6
{[%clk 0:02:56.8]} 10. Kb1 {[%clk 0:02:59]} 10... Bf6 {[%clk 0:02:54.7]} 11. h3
{[%clk 0:02:58.2]} 11... a5 {[%clk 0:02:53.5]} 12. g4 {[%clk 0:02:56.9]} 12...
Ne5 {[%clk 0:02:50.6]} 13. Nxe5 {[%clk 0:02:51]} 13... Bxe5 {[%clk 0:02:44.4]}
14. f4 {[%clk 0:02:48.7]} 14... Bf6 {[%clk 0:02:43.9]} 15. f5 {[%clk 0:02:46.5]}
15... Bd7 {[%clk 0:02:43.8]} 16. Bg2 {[%clk 0:02:41.8]} 16... Bc6 {[%clk
0:02:43.5]} 17. Rhf1 {[%clk 0:02:37.9]} 17... Be5 {[%clk 0:02:40.3]} 18. g5
{[%clk 0:02:34.8]} 18... a4 {[%clk 0:02:36.6]} 19. a3 {[%clk 0:02:33.4]} 19...
Qd7 {[%clk 0:02:35.8]} 20. Bd5 {[%clk 0:02:28.1]} 20... Bxd5 {[%clk 0:02:34.5]}
21. Qxd5 {[%clk 0:02:27.2]} 21... Qc6 {[%clk 0:02:24.8]} 22. Qd3 {[%clk
0:02:19.5]} 22... g6 {[%clk 0:02:18.2]} 23. Bd4 {[%clk 0:02:18.1]} 23... Rae8
{[%clk 0:02:16.1]} 24. Rde1 {[%clk 0:02:11.9]} 24... Bxd4 {[%clk 0:02:12]} 25.
cxd4 {[%clk 0:02:11.5]} 25... Qd5 {[%clk 0:02:06]} 26. fxg6 {[%clk 0:01:55.6]}
26... hxg6 {[%clk 0:02:04.7]} 27. h4 {[%clk 0:01:54.6]} 27... b5 {[%clk
0:01:55.9]} 28. Qh3 {[%clk 0:01:40.4]} 28... Qxd4 {[%clk 0:01:30]} 29. h5 {[%clk
0:01:39.2]} 29... gxh5 {[%clk 0:01:19.1]} 30. Qxh5 {[%clk 0:01:37.6]} 30... Qg7
{[%clk 0:01:18.1]} 31. Rg1 {[%clk 0:01:33.5]} 31... c6 {[%clk 0:01:15.7]} 32.
Rxe8 {[%clk 0:01:28.2]} 32... Rxe8 {[%clk 0:01:15.1]} 33. g6 {[%clk 0:01:28.3]}
33... Kf8 {[%clk 0:00:43.7]} 34. Rf1 {[%clk 0:01:20]} 34... Re7 {[%clk
0:00:42.9]} 35. gxf7 {[%clk 0:00:54.4]} 35... Rxf7 {[%clk 0:00:41.9]} 36. Re1
{[%clk 0:00:54]} 36... Re7 {[%clk 0:00:32.6]} 37. Qf5+ {[%clk 0:00:51]} 37...
Kg8 {[%clk 0:00:30.1]} 38. Qc8+ {[%clk 0:00:47.5]} 38... Kh7 {[%clk 0:00:28.7]}
39. Rh1+ {[%clk 0:00:45.2]} 1-0

[Event "Late-Titled-Tuesday-Blitz-March-19-2024"]
[Site "Chess.com"]
[Date "2024.03.19"]
[Round "11"]
[White "Bilan_Danila"]
[Black "uzkuzk"]
[Result "1-0"]
[WhiteElo "2642"]
[BlackElo "2488"]
[TimeControl "180+1"]
[EndTime "16:04:00 PDT"]
[Termination "Bilan_Danila won by checkmate"]

1. d4 {[%clk 0:03:00.9]} 1... e5 {[%clk 0:02:59.3]} 2. dxe5 {[%clk 0:02:54.6]}
2... Nc6 {[%clk 0:02:58]} 3. Nf3 {[%clk 0:02:54.1]} 3... Qe7 {[%clk 0:02:57.9]}
4. g3 {[%clk 0:02:46.1]} 4... Nxe5 {[%clk 0:02:54.9]} 5. Nxe5 {[%clk 0:02:47]}
5... Qxe5 {[%clk 0:02:55.6]} 6. Bg2 {[%clk 0:02:47.1]} 6... h5 {[%clk
0:02:52.3]} 7. Nc3 {[%clk 0:02:41.4]} 7... Bb4 {[%clk 0:02:44.2]} 8. Qd3 {[%clk
0:02:37.4]} 8... Nf6 {[%clk 0:02:37.8]} 9. Bf4 {[%clk 0:02:21.9]} 9... Qc5
{[%clk 0:02:30.8]} 10. O-O {[%clk 0:01:55.7]} 10... Bxc3 {[%clk 0:02:28.4]} 11.
bxc3 {[%clk 0:01:52.5]} 11... d5 {[%clk 0:02:22.6]} 12. Be5 {[%clk 0:01:38.9]}
12... c6 {[%clk 0:02:15.4]} 13. Bxf6 {[%clk 0:01:22.8]} 13... gxf6 {[%clk
0:02:14.1]} 14. e4 {[%clk 0:01:19.4]} 14... Be6 {[%clk 0:01:55.7]} 15. exd5
{[%clk 0:01:14.5]} 15... O-O-O {[%clk 0:01:54.5]} 16. c4 {[%clk 0:00:48.1]}
16... cxd5 {[%clk 0:01:54]} 17. cxd5 {[%clk 0:00:48.2]} 17... Bxd5 {[%clk
0:01:51.4]} 18. Qf5+ {[%clk 0:00:47.7]} 18... Kb8 {[%clk 0:01:49.5]} 19. Rad1
{[%clk 0:00:45.7]} 19... h4 {[%clk 0:01:34.8]} 20. Rxd5 {[%clk 0:00:39.5]} 20...
Rxd5 {[%clk 0:01:33.5]} 21. Qxd5 {[%clk 0:00:40.4]} 21... Qxd5 {[%clk
0:01:29.8]} 22. Bxd5 {[%clk 0:00:40.2]} 22... hxg3 {[%clk 0:01:30.3]} 23. fxg3
{[%clk 0:00:35.7]} 23... Rd8 {[%clk 0:01:26.4]} 24. Bxf7 {[%clk 0:00:34.8]}
24... Rd2 {[%clk 0:01:17.8]} 25. Rf2 {[%clk 0:00:31.7]} 25... Rd1+ {[%clk
0:01:16.9]} 26. Kg2 {[%clk 0:00:32.1]} 26... Kc7 {[%clk 0:01:15.8]} 27. Rxf6
{[%clk 0:00:30.3]} 27... Rd2+ {[%clk 0:01:15.3]} 28. Rf2 {[%clk 0:00:30]} 28...
Rd1 {[%clk 0:01:16.2]} 29. h4 {[%clk 0:00:29.9]} 29... Kd6 {[%clk 0:01:15.6]}
30. h5 {[%clk 0:00:30.2]} 30... Ke7 {[%clk 0:01:16.5]} 31. h6 {[%clk 0:00:29]}
31... Rd8 {[%clk 0:01:14.9]} 32. h7 {[%clk 0:00:28.6]} 32... Rh8 {[%clk
0:01:15.8]} 33. Bg8 {[%clk 0:00:28.8]} 33... b5 {[%clk 0:01:12.8]} 34. g4 {[%clk
0:00:28.7]} 34... a5 {[%clk 0:01:11.1]} 35. g5 {[%clk 0:00:28.8]} 35... b4
{[%clk 0:01:12]} 36. g6 {[%clk 0:00:28.3]} 36... b3 {[%clk 0:01:12.9]} 37. axb3
{[%clk 0:00:28]} 37... a4 {[%clk 0:01:12.4]} 38. bxa4 {[%clk 0:00:28.3]} 38...
Kd6 {[%clk 0:01:12.8]} 39. Rf5 {[%clk 0:00:27]} 39... Kc6 {[%clk 0:01:12.3]} 40.
g7 {[%clk 0:00:26.7]} 40... Kb6 {[%clk 0:01:13.2]} 41. gxh8=Q {[%clk 0:00:26.5]}
41... Ka6 {[%clk 0:01:13]} 42. Qf6+ {[%clk 0:00:23.1]} 42... Kb7 {[%clk
0:01:12.8]} 43. h8=Q {[%clk 0:00:23.1]} 43... Kc7 {[%clk 0:01:13.7]} 44. Qhg7+
{[%clk 0:00:22.9]} 44... Kc8 {[%clk 0:01:12.2]} 45. Re5 {[%clk 0:00:23.1]} 45...
Kb8 {[%clk 0:01:11.7]} 46. Bd5 {[%clk 0:00:22.1]} 46... Kc8 {[%clk 0:01:11.7]}
47. a5 {[%clk 0:00:20.3]} 47... Kb8 {[%clk 0:01:11.4]} 48. a6 {[%clk 0:00:20.3]}
48... Kc8 {[%clk 0:01:12.3]} 49. c3 {[%clk 0:00:19.4]} 49... Kb8 {[%clk
0:01:13.2]} 50. a7+ {[%clk 0:00:19.6]} 50... Kc8 {[%clk 0:01:14.1]} 51. a8=Q#
{[%clk 0:00:16.7]} 1-0

[Event "Late-Titled-Tuesday-Blitz-March-19-2024"]
[Site "Chess.com"]
[Date "2024.03.19"]
[Round "11"]
[White "TheMagician"]
[Black "McCarthyStone"]
[Result "0-1"]
[WhiteElo "2228"]
[BlackElo "2372"]
[TimeControl "180+1"]
[EndTime "16:04:00 PDT"]
[Termination "McCarthyStone won on time"]

1. d4 {[%clk 0:02:57.1]} 1... d6 {[%clk 0:02:50]} 2. e4 {[%clk 0:02:56.9]} 2...
Nf6 {[%clk 0:02:46.9]} 3. Nc3 {[%clk 0:02:56]} 3... Nc6 {[%clk 0:02:47.1]} 4.
Nf3 {[%clk 0:02:51.5]} 4... Bg4 {[%clk 0:02:47.2]} 5. d5 {[%clk 0:02:51.7]} 5...
Nb8 {[%clk 0:02:46.9]} 6. Bg5 {[%clk 0:02:39.6]} 6... g6 {[%clk 0:02:38]} 7. Qd3
{[%clk 0:02:16.3]} 7... Bxf3 {[%clk 0:02:31.8]} 8. gxf3 {[%clk 0:02:15.1]} 8...
Bg7 {[%clk 0:02:32.7]} 9. Qb5+ {[%clk 0:02:13.4]} 9... Nbd7 {[%clk 0:02:31.9]}
10. Be3 {[%clk 0:01:58.9]} 10... O-O {[%clk 0:02:29]} 11. Be2 {[%clk 0:01:49.5]}
11... c6 {[%clk 0:02:26.3]} 12. dxc6 {[%clk 0:01:43]} 12... bxc6 {[%clk
0:02:27.2]} 13. Qxc6 {[%clk 0:01:37.8]} 13... Ne5 {[%clk 0:02:26.9]} 14. Qa4
{[%clk 0:01:24.3]} 14... Rb8 {[%clk 0:02:26.8]} 15. Rb1 {[%clk 0:01:03.1]} 15...
a5 {[%clk 0:02:24.2]} 16. a3 {[%clk 0:00:56.6]} 16... Qc7 {[%clk 0:02:12.9]} 17.
Qd4 {[%clk 0:00:34.3]} 17... Rfc8 {[%clk 0:02:06.7]} 18. Kf1 {[%clk 0:00:31.1]}
18... Nxf3 {[%clk 0:01:26.2]} 19. Bxf3 {[%clk 0:00:29.8]} 19... Nd7 {[%clk
0:01:26.1]} 20. Qa7 {[%clk 0:00:17.4]} 20... Bxc3 {[%clk 0:01:20.8]} 21. Qxc7
{[%clk 0:00:17.2]} 21... Rxc7 {[%clk 0:01:20.8]} 22. Kg2 {[%clk 0:00:17]} 22...
Rxb2 {[%clk 0:01:16.9]} 23. Rxb2 {[%clk 0:00:13.9]} 23... Bxb2 {[%clk
0:01:17.8]} 24. Bd2 {[%clk 0:00:12.7]} 24... Rxc2 {[%clk 0:01:10.6]} 25. Bxa5
{[%clk 0:00:12.5]} 25... Bxa3 {[%clk 0:01:10.8]} 26. Rb1 {[%clk 0:00:10.1]}
26... Bc5 {[%clk 0:01:09]} 27. Be1 {[%clk 0:00:10.3]} 27... Ne5 {[%clk
0:01:08.7]} 28. Rb8+ {[%clk 0:00:08.1]} 28... Kg7 {[%clk 0:01:08.3]} 29. Rb7
{[%clk 0:00:08.6]} 29... Nd3 {[%clk 0:01:05.9]} 30. Ba5 {[%clk 0:00:02.5]} 30...
Bxf2 {[%clk 0:01:05.2]} 31. Kf1 {[%clk 0:00:01.5]} 31... Bd4 {[%clk 0:01:01.6]}
32. Be2 {[%clk 0:00:01.6]} 32... Nf4 {[%clk 0:00:58.9]} 0-1

[Event "Late-Titled-Tuesday-Blitz-March-19-2024"]
[Site "Chess.com"]
[Date "2024.03.19"]
[Round "11"]
[White "NovakRatko"]
[Black "lluiss"]
[Result "1-0"]
[WhiteElo "2410"]
[BlackElo "2265"]
[TimeControl "180+1"]
[EndTime "16:04:01 PDT"]
[Termination "NovakRatko won on time"]

1. d4 {[%clk 0:03:00.9]} 1... Nf6 {[%clk 0:02:58.6]} 2. c4 {[%clk 0:03:01.2]}
2... g6 {[%clk 0:02:59]} 3. Nc3 {[%clk 0:03:01.1]} 3... d5 {[%clk 0:02:59.7]} 4.
f3 {[%clk 0:03:00.9]} 4... Bg7 {[%clk 0:02:55.8]} 5. e4 {[%clk 0:03:00.8]} 5...
dxe4 {[%clk 0:02:47.7]} 6. fxe4 {[%clk 0:03:00.6]} 6... e5 {[%clk 0:02:44.9]} 7.
d5 {[%clk 0:02:59.3]} 7... O-O {[%clk 0:02:44.6]} 8. Bg5 {[%clk 0:02:57.9]} 8...
h6 {[%clk 0:02:42.7]} 9. Bh4 {[%clk 0:02:57.6]} 9... c6 {[%clk 0:02:34.5]} 10.
Be2 {[%clk 0:02:56.2]} 10... Qa5 {[%clk 0:02:09.5]} 11. Qd2 {[%clk 0:02:55.1]}
11... g5 {[%clk 0:02:07.4]} 12. Bg3 {[%clk 0:02:52.4]} 12... b5 {[%clk
0:02:07.1]} 13. cxb5 {[%clk 0:02:49.8]} 13... cxd5 {[%clk 0:02:06.7]} 14. exd5
{[%clk 0:02:45.8]} 14... e4 {[%clk 0:01:53.3]} 15. Nxe4 {[%clk 0:02:43.3]} 15...
Qxd2+ {[%clk 0:01:49.3]} 16. Nxd2 {[%clk 0:02:42.4]} 16... Nxd5 {[%clk
0:01:48.4]} 17. Bf3 {[%clk 0:02:31.7]} 17... Be6 {[%clk 0:01:48]} 18. O-O-O
{[%clk 0:02:29.1]} 18... Nd7 {[%clk 0:01:37.7]} 19. Kb1 {[%clk 0:02:16.7]} 19...
f5 {[%clk 0:01:37.2]} 20. Bd6 {[%clk 0:02:15.1]} 20... Rfd8 {[%clk 0:01:20.4]}
21. Nb3 {[%clk 0:02:12.9]} 21... N7b6 {[%clk 0:01:20.1]} 22. Bc5 {[%clk
0:02:07.2]} 22... Na4 {[%clk 0:01:20.2]} 23. Ba3 {[%clk 0:01:55.7]} 23... Rab8
{[%clk 0:01:20.3]} 24. Ne2 {[%clk 0:01:46.2]} 24... Rxb5 {[%clk 0:01:14.1]} 25.
Ned4 {[%clk 0:01:45.9]} 25... Bxd4 {[%clk 0:00:43.3]} 26. Nxd4 {[%clk
0:01:44.1]} 26... Nac3+ {[%clk 0:00:43.3]} 27. Kc2 {[%clk 0:01:41.8]} 27... Nxd1
{[%clk 0:00:43.3]} 28. Nxb5 {[%clk 0:01:17.2]} 28... N1e3+ {[%clk 0:00:41.8]}
29. Kb1 {[%clk 0:01:16.6]} 29... Rb8 {[%clk 0:00:33.3]} 30. Nd4 {[%clk
0:01:13.2]} 30... Nc3+ {[%clk 0:00:29.3]} 31. Ka1 {[%clk 0:01:08]} 31... g4
{[%clk 0:00:05.2]} 32. Bc6 {[%clk 0:00:58.1]} 32... Rb6 {[%clk 0:00:04.4]} 33.
bxc3 {[%clk 0:00:55.9]} 1-0

[Event "Late-Titled-Tuesday-Blitz-March-19-2024"]
[Site "Chess.com"]
[Date "2024.03.19"]
[Round "11"]
[White "Zohid6"]
[Black "AryanTari"]
[Result "1-0"]
[WhiteElo "2900"]
[BlackElo "3003"]
[TimeControl "180+1"]
[EndTime "16:04:06 PDT"]
[Termination "Zohid6 won by resignation"]

1. e4 {[%clk 0:03:00.9]} 1... e5 {[%clk 0:02:55.2]} 2. Nf3 {[%clk 0:03:00.1]}
2... Nc6 {[%clk 0:02:54.6]} 3. Bb5 {[%clk 0:02:59.1]} 3... Nge7 {[%clk
0:02:50.8]} 4. O-O {[%clk 0:02:57.8]} 4... Ng6 {[%clk 0:02:50]} 5. c3 {[%clk
0:02:57.1]} 5... d5 {[%clk 0:02:49.2]} 6. Qa4 {[%clk 0:02:44.9]} 6... dxe4
{[%clk 0:02:48.3]} 7. Qxe4 {[%clk 0:02:38.3]} 7... Bd6 {[%clk 0:02:40.8]} 8. d4
{[%clk 0:02:32.4]} 8... f5 {[%clk 0:02:40.7]} 9. Qe2 {[%clk 0:02:11.4]} 9... e4
{[%clk 0:02:27]} 10. Ng5 {[%clk 0:02:09]} 10... Bf4 {[%clk 0:02:06.2]} 11. Qh5
{[%clk 0:02:01.5]} 11... Qxg5 {[%clk 0:01:56.1]} 12. Qxg5 {[%clk 0:02:00.3]}
12... Bxg5 {[%clk 0:01:57]} 13. Bxg5 {[%clk 0:02:00.7]} 13... Bd7 {[%clk
0:01:52]} 14. f3 {[%clk 0:01:52.5]} 14... f4 {[%clk 0:01:00.5]} 15. fxe4 {[%clk
0:01:46.7]} 15... O-O {[%clk 0:01:00.9]} 16. g3 {[%clk 0:01:22.7]} 16... Bh3
{[%clk 0:01:00.8]} 17. Rxf4 {[%clk 0:01:20.5]} 17... Nxf4 {[%clk 0:01:00.7]} 18.
Bxf4 {[%clk 0:01:21.4]} 18... h6 {[%clk 0:00:57.9]} 19. Nd2 {[%clk 0:01:20.1]}
19... a6 {[%clk 0:00:45.5]} 20. Bc4+ {[%clk 0:01:18.7]} 20... Kh7 {[%clk
0:00:46.1]} 21. Bxc7 {[%clk 0:01:17.9]} 21... Nxd4 {[%clk 0:00:40.2]} 22. cxd4
{[%clk 0:01:15.7]} 22... Rac8 {[%clk 0:00:09.8]} 23. Bd6 {[%clk 0:01:15.2]}
23... Rfe8 {[%clk 0:00:07.2]} 24. e5 {[%clk 0:01:13.4]} 24... Bf5 {[%clk
0:00:07.9]} 25. Rf1 {[%clk 0:01:12.4]} 25... Bg6 {[%clk 0:00:08.6]} 26. a4
{[%clk 0:01:09.3]} 26... Red8 {[%clk 0:00:04.8]} 27. b3 {[%clk 0:01:05.5]} 27...
b5 {[%clk 0:00:04.9]} 28. axb5 {[%clk 0:01:04.6]} 28... axb5 {[%clk 0:00:05.8]}
29. Bd5 {[%clk 0:00:56.4]} 29... Rc2 {[%clk 0:00:06.7]} 30. Ne4 {[%clk
0:00:56.4]} 30... Re2 {[%clk 0:00:05.6]} 31. Nc5 {[%clk 0:00:55.1]} 31... Rd2
{[%clk 0:00:05.5]} 32. Ne6 {[%clk 0:00:54.1]} 32... Rc8 {[%clk 0:00:05.3]} 33.
Nf8+ {[%clk 0:00:54.1]} 33... Rxf8 {[%clk 0:00:04.2]} 34. Rxf8 {[%clk
0:00:54.3]} 34... Rxd4 {[%clk 0:00:04]} 35. Bg8+ {[%clk 0:00:54.4]} 1-0

[Event "Late-Titled-Tuesday-Blitz-March-19-2024"]
[Site "Chess.com"]
[Date "2024.03.19"]
[Round "11"]
[White "Godzillator"]
[Black "angelgab3"]
[Result "0-1"]
[WhiteElo "2404"]
[BlackElo "2622"]
[TimeControl "180+1"]
[EndTime "16:04:07 PDT"]
[Termination "angelgab3 won by checkmate"]

1. Nf3 {[%clk 0:03:00.9]} 1... d5 {[%clk 0:01:13]} 2. d4 {[%clk 0:02:58.2]} 2...
Nf6 {[%clk 0:01:13.1]} 3. e3 {[%clk 0:02:54.8]} 3... e6 {[%clk 0:01:12.6]} 4. c4
{[%clk 0:02:54.3]} 4... Be7 {[%clk 0:01:09.9]} 5. Nc3 {[%clk 0:02:53.8]} 5...
O-O {[%clk 0:01:10.5]} 6. b3 {[%clk 0:02:50.6]} 6... c5 {[%clk 0:01:09.6]} 7.
cxd5 {[%clk 0:02:49.5]} 7... cxd4 {[%clk 0:01:10]} 8. Qxd4 {[%clk 0:02:45.9]}
8... exd5 {[%clk 0:01:10]} 9. Bb2 {[%clk 0:02:45.2]} 9... Nc6 {[%clk 0:01:10.1]}
10. Qd1 {[%clk 0:02:45.2]} 10... Bb4 {[%clk 0:01:09.6]} 11. Be2 {[%clk
0:02:41.6]} 11... Ne4 {[%clk 0:01:09.6]} 12. Rc1 {[%clk 0:02:41.4]} 12... Qa5
{[%clk 0:01:08]} 13. Qc2 {[%clk 0:02:29.7]} 13... Bf5 {[%clk 0:01:07.1]} 14. Bd3
{[%clk 0:02:28.9]} 14... Nxc3 {[%clk 0:00:49.7]} 15. Bxc3 {[%clk 0:02:24.5]}
15... Bxc3+ {[%clk 0:00:49.2]} 16. Qxc3 {[%clk 0:02:24]} 16... Bxd3 {[%clk
0:00:50.1]} 17. Qxa5 {[%clk 0:02:12.9]} 17... Nxa5 {[%clk 0:00:51]} 18. Rc5
{[%clk 0:02:12.3]} 18... b6 {[%clk 0:00:49.1]} 19. Rxd5 {[%clk 0:02:12.2]} 19...
Rad8 {[%clk 0:00:50]} 20. Rxd8 {[%clk 0:02:07.7]} 20... Rxd8 {[%clk 0:00:50.9]}
21. Nd4 {[%clk 0:02:07.8]} 21... Be4 {[%clk 0:00:48.7]} 22. f3 {[%clk
0:02:07.4]} 22... Bb7 {[%clk 0:00:49.6]} 23. Kf2 {[%clk 0:02:01.2]} 23... Nc6
{[%clk 0:00:50.2]} 24. Rd1 {[%clk 0:02:00]} 24... Nxd4 {[%clk 0:00:49.9]} 25.
exd4 {[%clk 0:01:59.8]} 25... Kf8 {[%clk 0:00:50.1]} 26. Ke3 {[%clk 0:01:59.7]}
26... Ke8 {[%clk 0:00:50.5]} 27. Rc1 {[%clk 0:01:59.5]} 27... Kd7 {[%clk
0:00:50.7]} 28. b4 {[%clk 0:01:55.6]} 28... Rc8 {[%clk 0:00:50.9]} 29. Re1
{[%clk 0:01:46.5]} 29... Rc3+ {[%clk 0:00:49.9]} 30. Kf4 {[%clk 0:01:45.6]}
30... Rc2 {[%clk 0:00:49.8]} 31. a4 {[%clk 0:01:41.6]} 31... Rxg2 {[%clk
0:00:49.2]} 32. a5 {[%clk 0:01:41.4]} 32... Rxh2 {[%clk 0:00:48.6]} 33. axb6
{[%clk 0:01:41.6]} 33... axb6 {[%clk 0:00:49.1]} 34. Ra1 {[%clk 0:01:42]} 34...
Rh3 {[%clk 0:00:48.9]} 35. d5 {[%clk 0:01:34]} 35... Rxf3+ {[%clk 0:00:49.8]}
36. Kxf3 {[%clk 0:01:33.7]} 36... Bxd5+ {[%clk 0:00:50.4]} 37. Ke3 {[%clk
0:01:33.8]} 37... h5 {[%clk 0:00:46.4]} 38. Ra7+ {[%clk 0:01:31.1]} 38... Kc6
{[%clk 0:00:44.5]} 39. Kf4 {[%clk 0:01:30.2]} 39... Kb5 {[%clk 0:00:44.3]} 40.
Rd7 {[%clk 0:01:26.6]} 40... Be6 {[%clk 0:00:41.6]} 41. Rd4 {[%clk 0:01:26.1]}
41... h4 {[%clk 0:00:42]} 42. Ke5 {[%clk 0:01:21.9]} 42... h3 {[%clk 0:00:41.2]}
43. Rh4 {[%clk 0:01:21.9]} 43... g5 {[%clk 0:00:39]} 44. Rh5 {[%clk 0:01:22.1]}
44... g4 {[%clk 0:00:39.5]} 45. Kd6+ {[%clk 0:01:15.6]} 45... Kxb4 {[%clk
0:00:39.1]} 46. Kc6 {[%clk 0:01:13.3]} 46... g3 {[%clk 0:00:38.7]} 47. Rg5
{[%clk 0:01:12.5]} 47... h2 {[%clk 0:00:36.5]} 48. Rxg3 {[%clk 0:01:11]} 48...
h1=Q+ {[%clk 0:00:36.2]} 49. Kxb6 {[%clk 0:01:11.8]} 49... Qe1 {[%clk
0:00:32.5]} 50. Rg8 {[%clk 0:01:09.5]} 50... Qe3+ {[%clk 0:00:31.3]} 51. Ka6
{[%clk 0:01:09]} 51... Bc4+ {[%clk 0:00:30.5]} 52. Kb7 {[%clk 0:01:09.3]} 52...
Qe7+ {[%clk 0:00:30.8]} 53. Kb6 {[%clk 0:01:09.2]} 53... Qd6+ {[%clk 0:00:29.9]}
54. Ka7 {[%clk 0:01:08.5]} 54... Qc7+ {[%clk 0:00:29.7]} 55. Ka8 {[%clk
0:01:08.1]} 55... Bd5# {[%clk 0:00:30.6]} 0-1